Cogmind - Beta 10.2 @@@ ROGUE MODE // 2021.08.09 @ 01:15:54 Player: Savant Result: Destroyed by G-50 Soldier with Heavy Laser Performance ------------- Evolutions (2) 1000 Regions Visited (5) 1000 Robots Destroyed (17) 85 Value Destroyed (681) 681 Prototype IDs (26) 520 Alien Tech Used (0) 0 Bonus (320) 320 TOTAL SCORE: 3606 Bonus ------- Follower Combat Kills 35 Aligned with FarCom 300 Friendly Fire -15 Cogmind --------- Core Integrity 0/550 Matter 209/300 Energy 14/100 System Corruption 0% Temperature Cool (9) Movement Core (750) Ox14 Location -8/Materials Parts ------- > --- POWER (1) -------- (None) > --- PROPULSION (4) --- Xenon Bombardment Thruster Xenon Bombardment Thruster Xenon Bombardment Thruster Xenon Bombardment Thruster > --- UTILITY (4) ------ Medium Storage Unit Large Storage Unit Large Storage Unit > --- WEAPON (2) ------- Heavy Flail > --- INVENTORY (20) --- Improved Heat Sink Improved Heat Sink Large Storage Unit Superbattery (2000) Large Matter Pod (150) Advanced Sensor Array Faulty Experimental Sensor Array Improved Terrain Scanner Relay Coupler [Sentry] (16) Relay Coupler [Sentry] (14) Light Assault Rifle Light Assault Rifle Mining Claw Peak State ------------ > --- POWER ------------ Light Angular Momentum Engine > --- PROPULSION ------- Aluminum Leg Aluminum Leg Aluminum Leg Carbon-fiber Leg > --- UTILITY ---------- Improved Heat Sink Medium Storage Unit Large Storage Unit Large Storage Unit > --- WEAPON ----------- Beam Rifle Heavy Assault Rifle > --- INVENTORY -------- Light Nuclear Core Xenon Bombardment Thruster Xenon Bombardment Thruster Xenon Bombardment Thruster Xenon Bombardment Thruster Improved Heat Sink Large Storage Unit Superbattery Large Matter Pod Advanced Sensor Array Experimental Sensor Array Improved Terrain Scanner Light Armor Plating Relay Coupler [Sentry] Light Assault Rifle Light Assault Rifle Mining Claw [Rating: 26] Favorites ----------- Power Light Angular Momentum Engine Engine Light Angular Momentum Engine Power Core Light Nuclear Core Propulsion Aluminum Leg Leg Aluminum Leg Flight Unit Xenon Bombardment Thruster Utility Large Storage Unit Device Improved Heat Sink Storage Large Storage Unit Processor Signal Interpreter Protection Light Armor Plating Weapon Light Assault Rifle Energy Gun Particle Gun Energy Cannon Heavy Particle Cannon Ballistic Gun Light Assault Rifle Impact Weapon Heavy Flail Slashing Weapon Mining Claw Build | -11 -10 -10 -10 -9 -8 ------- Run | Scr Mat Min Exi Min Mat Slots Evolved 4 | . . . . . 4 Power . | . . . . . . Propulsion 2 | . . . . . 2 Utility 2 | . . . . . 2 Weapon . | . . . . . . Parts Attached 55 | 6 10 16 7 2 14 Power 5 | 1 1 2 . . 1 Engine 4 | 1 1 2 . . . Core 1 | . . . . . 1 Reactor . | . . . . . . Propulsion 19 | 2 3 4 2 . 8 Treads . | . . . . . . Leg 14 | 2 3 3 2 . 4 Wheel . | . . . . . . Hover . | . . . . . . Flight 5 | . . 1 . . 4 Utility 15 | 1 4 2 5 . 3 Device 6 | . . 2 3 . 1 Storage 6 | 1 2 . 2 . 1 Processor 2 | . 2 . . . . Hackware . | . . . . . . Protection 1 | . . . . . 1 Artifact . | . . . . . . Weapon 16 | 2 2 8 . 2 2 Energy Gun 3 | 1 1 . . 1 . Energy Cannon 1 | . . 1 . . . Ballistic Gun 8 | 1 . 6 . 1 . Ballistic Cannon . | . . . . . . Launcher . | . . . . . . Special Weapon . | . . . . . . Impact Weapon 2 | . . . . . 2 Slashing Weapon 2 | . 1 1 . . . Piercing Weapon . | . . . . . . Special Melee Weapon . | . . . . . . Unidentified Prototypes . | . . . . . . Parts Lost 15 | . 1 3 . . 11 Power 3 | . 1 . . . 2 Propulsion 5 | . . . . . 5 Utility 1 | . . . . . 1 Weapon 6 | . . 3 . . 3 Highest Loss Streak 10 | . 1 3 . . 10 Average Slot Usage (%) 96 | . 94 99 99 100 86 Engine 12 | . 14 13 14 14 4 Leg 27 | . 28 28 27 28 28 Device 5 | . . 10 8 . 7 Storage 17 | . 14 14 19 28 26 Processor 3 | . 8 3 . . . Energy Gun 5 | . 14 . . 2 6 Energy Cannon 1 | . . 3 . . . Ballistic Gun 19 | . 13 22 28 25 8 Naked Turns . | . . . . . . Heaviest Build 56 | 11 26 33 43 47 56 Greatest Support 45 | 20 20 25 25 25 45 Greatest Overweight (x) 4 | . 1 1 2 1 4 Average Overweight (x) . | . . . 1 1 1 Largest Inventory Capacity 20 | 6 10 10 16 16 20 Average Capacity 11 | 5 7 10 12 16 19 Most Carried 18 | 3 9 10 12 16 18 Average Carried 9 | 1 7 9 10 14 16 Final Capacity 20 | 6 10 10 16 16 20 Final Carried 16 | 3 9 10 12 16 13 Class Distribution -------------------- 63% | Mutant 30% | Scavenger-Mutant 6% | Hauler-Mutant Dominant Class ---------------- Mutant | -10/Materials Scavenger-Mutant | -10/Mines Scavenger-Mutant | -10/Exiles Mutant | -9/Mines Hauler-Mutant | -8/Materials Resources | -11 -10 -10 -10 -9 -8 ----------- Run | Scr Mat Min Exi Min Mat Matter Collected 869 | 217 193 261 78 15 105 Remotely . | . . . . . . Salvage Created 692 | . 241 245 . . 206 Parts 37 | . 13 17 . . 7 Haulers Intercepted . | . . . . . . Recyclers Shooed . | . . . . . . Parts Field Recycled . | . . . . . . Retrieved Matter . | . . . . . . Parts Self-Destructed . | . . . . . . Prevented . | . . . . . . Kills | -11 -10 -10 -10 -9 -8 ------- Run | Scr Mat Min Exi Min Mat Combat Hostiles Destroyed 16 | . 5 7 . . 4 Melee 2 | . . . . . 2 Guns 13 | . 5 6 . . 2 Cannons 1 | . . 1 . . . Classes Destroyed 5 | . 2 1 . . 2 Operator 1 | . 1 . . . . Swarmer 3 | . . 3 . . . Grunt 11 | . 5 4 . . 2 Brawler 1 | . . . . . 1 Duelist 1 | . . . . . 1 Best Kill Streak 3 | . 2 3 . . 2 Combat Bots Only 3 | . 2 3 . . 2 Max Kills in Single Turn 1 | . 1 1 . . 1 Gunslinging . | . . . . . . Exploded . | . . . . . . Melee 1 | . . . . . 1 Uniques/NPCs Destroyed . | . . . . . . Combat | -11 -10 -10 -10 -9 -8 -------- Run | Scr Mat Min Exi Min Mat Damage Taken 2595 | . 318 367 . . 1910 Core 676 | . 54 56 . . 566 Absorbed by Shields . | . . . . . . Core Remaining (%) 78 | 100 . . . 56 . Volleys Fired 56 | . 22 21 . . 13 Largest 2 | . 2 2 . . 2 Hottest 95 | . 85 95 . . 79 Shots Fired 107 | . 44 37 . . 26 Gun 100 | . 44 30 . . 26 Cannon 7 | . . 7 . . . Launcher . | . . . . . . Special . | . . . . . . Kinetic 64 | . 22 29 . . 13 Thermal 43 | . 22 8 . . 13 Explosive . | . . . . . . Electromagnetic . | . . . . . . Robot Hit Streak 10 | . 8 10 . . 9 Robot Miss Streak 3 | . 3 3 . . 3 Penetration Max . | . . . . . . Secondary Targets 2 | . . 1 . . 1 Max Gunslinging Chain 1 | . . 1 . . 1 Shots Hit Robots 76 | . 23 29 . . 24 Core Hits 34 | . 13 12 . . 9 Critical Hits . | . . . . . . Critical Kills . | . . . . . . Critical Parts Destroyed . | . . . . . . Melee Attacks 10 | . 1 2 . . 7 Impact 7 | . . . . . 7 Slashing 3 | . 1 2 . . . Piercing . | . . . . . . Sneak Attacks . | . . . . . . Combat Hostiles . | . . . . . . Follow-up Attacks . | . . . . . . Damage Inflicted 1096 | . 339 383 . . 374 Guns 816 | . 339 206 . . 271 Cannons 177 | . . 177 . . . Explosions . | . . . . . . Melee 102 | . . . . . 102 Ramming 1 | . . . . . 1 Kinetic 450 | . 132 206 . . 112 Thermal 543 | . 207 177 . . 159 Explosive . | . . . . . . Electromagnetic . | . . . . . . Impact 102 | . . . . . 102 Slashing . | . . . . . . Piercing . | . . . . . . Highest Corruption . | . . . . . . Average Corruption . | . . . . . . Corruption Purged . | . . . . . . Overload Shots . | . . . . . . Overflow Damage . | . . . . . . Projectiles . | . . . . . . Explosions . | . . . . . . Melee . | . . . . . . Knockbacks . | . . . . . . Impact . | . . . . . . Kinetic . | . . . . . . Secondary . | . . . . . . Self-Inflicted Damage . | . . . . . . Shots . | . . . . . . Rammed . | . . . . . . Targets Rammed 1 | . . . . . 1 Kicked 1 | . . . . . 1 Crushed . | . . . . . . Highest Temperature 350 | . 120 350 . . 39 Average Temperature 78 | . 49 164 . . 22 Received Heat Transfer 1101 | . 174 153 . . 774 Effects 2 | . . 2 . . . Energy Bleed 1 | . . 1 . . . Short Circuit 1 | . . 1 . . . Siege Activations . | . . . . . . Robots Corrupted . | . . . . . . Combat Hostiles . | . . . . . . Parts Fried . | . . . . . . Impact Corruptions . | . . . . . . Robots Melted . | . . . . . . Combat Hostiles . | . . . . . . Parts Melted 3 | . 1 1 . . 1 Heat Transferred 1160 | . 518 259 . . 383 Parts Sabotaged . | . . . . . . Parts Stolen . | . . . . . . Parts Stripped . | . . . . . . Power Chain Reactions . | . . . . . . Missiles Intercepted . | . . . . . . Alert | -11 -10 -10 -10 -9 -8 ------- Run | Scr Mat Min Exi Min Mat Peak Influence 244 | . 168 155 . 12 244 Initial 15 | . . 15 . . 4 Average 71 | . 58 63 . 6 189 Maximum Alert Level 1 | . . . . . 1 Low Security (%) 92 | 100 100 100 . 100 47 Level 1 7 | . . . . . 52 Level 2 . | . . . . . . Level 3 . | . . . . . . Level 4 . | . . . . . . Level 5 . | . . . . . . High Security . | . . . . . . Max Security . | . . . . . . Squads Dispatched 6 | . 3 . . . 3 Investigation 1 | . 1 . . . . Extermination . | . . . . . . Reinforcement 4 | . 2 . . . 2 Assault 1 | . . . . . 1 Garrison . | . . . . . . Intercept . | . . . . . . Construction Impeded . | . . . . . . Haulers Reinforced . | . . . . . . Stealth | -11 -10 -10 -10 -9 -8 --------- Run | Scr Mat Min Exi Min Mat Distress Signals 4 | . 3 . . . 1 Communications Jammed . | . . . . . . Distress Signals . | . . . . . . Times Spotted 41 | . 19 7 . . 15 Peak Tracking Total 9 | . 8 3 . . 9 Tactical Retreats 1 | . 1 . . . . Traps | -11 -10 -10 -10 -9 -8 ------- Run | Scr Mat Min Exi Min Mat Traps Triggered . | . . . . . . Indirectly . | . . . . . . Trap Hack Attempts . | . . . . . . Triggered . | . . . . . . Disarmed . | . . . . . . Reprogrammed . | . . . . . . Reused . | . . . . . . Traps Extracted . | . . . . . . Installed . | . . . . . . Triggered . | . . . . . . Machines | -11 -10 -10 -10 -9 -8 ---------- Run | Scr Mat Min Exi Min Mat Machines Disabled 1 | . . . . . 1 Max in Single Turn . | . . . . . . Garrison Access 1 | . . . . . 1 Machines Sabotaged . | . . . . . . Garrisons Compromised . | . . . . . . Overloaded Fab Kills . | . . . . . . Fab Network Shutdowns . | . . . . . . Hacking | -11 -10 -10 -10 -9 -8 --------- Run | Scr Mat Min Exi Min Mat Machines Accessed 12 | . 9 1 1 1 . Terminals 8 | . 7 . . 1 . Fabricators . | . . . . . . Repair Stations 1 | . 1 . . . . Recycling Units 1 | . 1 . . . . Scanalyzers . | . . . . . . Garrison Access . | . . . . . . Total Hacks 36 | . 29 1 1 5 . Successful 28 | . 23 1 1 3 . Failed 8 | . 6 . . 2 . Catastrophic . | . . . . . . Database Lockouts . | . . . . . . Manual 23 | . 17 . 1 5 . Terminals 30 | . 25 . . 5 . Fabricators . | . . . . . . Repair Stations 2 | . 2 . . . . Recycling Units 2 | . 2 . . . . Scanalyzers . | . . . . . . Garrison Access . | . . . . . . Terminal Hacks 19 | . 14 1 1 3 . Part Schematic 2 | . 2 . . . . Robot Analysis 4 | . 2 . . 2 . Prototype ID Bank 2 | . 2 . . . . Open Door 1 | . . 1 . . . Alert Level 2 | . 1 . . 1 . Unreport Threat 1 | . 1 . . . . Locate Traps 4 | . 4 . . . . Hauler Manifests 1 | . 1 . . . . Registered Components 1 | . 1 . . . . EX-Prototype ID Bank 1 | . . . 1 . . Fabricator Hacks . | . . . . . . Repair Station Hacks 2 | . 2 . . . . Scan Component 1 | . 1 . . . . Repair 1 | . 1 . . . . Recycling Unit Hacks 1 | . 1 . . . . Report Inventory 1 | . 1 . . . . Scanalyzer . | . . . . . . Garrison Access Hacks . | . . . . . . Unauthorized Hacks 6 | . 6 . . . . Terminals 5 | . 5 . . . . Track 2 | . 2 . . . . Botnet 3 | . 3 . . . . Fabricators . | . . . . . . Repair Stations . | . . . . . . Recycling Units 1 | . 1 . . . . Tunnel 1 | . 1 . . . . Scanalyzers . | . . . . . . Garrison Access . | . . . . . . Data Cores Recovered . | . . . . . . Used . | . . . . . . Hacking Detections 9 | . 8 . . 1 . Full Trace Events . | . . . . . . Feedback Events . | . . . . . . Feedback Blocked . | . . . . . . Robot Schematics Acquired . | . . . . . . Robots Built . | . . . . . . Matter . | . . . . . . Time . | . . . . . . Total Robot Build Rating . | . . . . . . Part Schematics Acquired 2 | . 2 . . . . Parts Built . | . . . . . . Matter . | . . . . . . Time . | . . . . . . Total Part Build Rating . | . . . . . . Parts Repaired 1 | . 1 . . . . Time 26 | . 26 . . . . Parts Recycled . | . . . . . . Recycled Matter . | . . . . . . Retrieved Matter . | . . . . . . Retrieved Components . | . . . . . . Parts Scanalyzed . | . . . . . . Part Schematics Acquired . | . . . . . . Parts Damaged . | . . . . . . Bothacking | -11 -10 -10 -10 -9 -8 ------------ Run | Scr Mat Min Exi Min Mat Used RIF Installer . | . . . . . . Robots Hacked . | . . . . . . Non-combat . | . . . . . . Combat . | . . . . . . Robot Hacks Applied . | . . . . . . Relay Couplers Released 2 | . . . . . 2 Machine Destruction 2 | . . . . . 2 Robots Rewired . | . . . . . . Allies Hacked . | . . . . . . Hacks Repelled . | . . . . . . Allies | -11 -10 -10 -10 -9 -8 -------- Run | Scr Mat Min Exi Min Mat Total Allies 3 | . . . . 3 . Largest Group 3 | . . . . 3 3 Highest-Rated Group 76 | . . . . 76 76 Highest-Rated Ally 31 | . . . . 31 31 Total Orders . | . . . . . . Ally Attacks 18 | . . . . . 18 Total Damage 295 | . . . . . 295 Kills 1 | . . . . . 1 Allies Corrupted . | . . . . . . Allies Melted . | . . . . . . Intel | -11 -10 -10 -10 -9 -8 ------- Run | Scr Mat Min Exi Min Mat Robot Analysis Total 4 | . 2 . . 2 . Derelict Logs Recovered 3 | . . . . 3 . Drone Launches . | . . . . . . Drone Recoveries . | . . . . . . Exploration | -11 -10 -10 -10 -9 -8 ------------- Run | Scr Mat Min Exi Min Mat Turns Passed 2623 | 68 829 664 560 216 286 Spaces Moved 1572 | 49 555 350 362 130 126 Core 3 | 3 . . . . . Treads . | . . . . . . Legs 1569 | 46 555 350 362 130 126 Wheels . | . . . . . . Hover . | . . . . . . Flight . | . . . . . . Fastest Speed 50 | 50 120 120 150 150 150 Average Speed 142 | 115 128 149 150 150 159 Slowest Speed 240 | 120 150 150 180 150 240 Overloaded Moves . | . . . . . . Propulsion Burnouts . | . . . . . . Robots Hopped . | . . . . . . Cave-ins Triggered . | . . . . . . Exploration Rate (%) 43 | 5 83 53 72 36 14 Regions Visited 5 Branch Regions 3 Pre-discovered Areas 2 | . 1 . . 1 . Known Exits Taken 2 | . 1 . . 1 . Unknown Exits Taken 3 | 1 . 1 1 . . Scrap Searched 2 | . . 1 . 1 . Spaces Dug 2 | . 1 1 . . . Terrain Destroyed 2 | . 1 1 . . . Melee 2 | . 1 1 . . . Projectile . | . . . . . . AOE . | . . . . . . Terrain Rammed . | . . . . . . Walls Destroyed . | . . . . . . Machines Disabled . | . . . . . . Actions | -11 -10 -10 -10 -9 -8 --------- Run | Scr Mat Min Exi Min Mat Total 1828 | 57 623 452 376 151 169 Wait 95 | . 22 55 . 16 2 Move 1567 | 48 554 349 361 129 126 Hop . | . . . . . . Pick Up 23 | 3 7 2 2 3 6 Fast Attach 23 | 6 2 4 6 1 4 Attach 12 | . . 3 . . 9 Detach 2 | . 1 1 . . . Swap 20 | . 8 9 1 1 1 Drop 19 | . 6 6 6 1 . Fire 56 | . 22 21 . . 13 Melee 10 | . 1 2 . . 7 Ram . | . . . . . . Kick 1 | . . . . . 1 Crush . | . . . . . . Escape Stasis . | . . . . . . Rewire . | . . . . . . Trap . | . . . . . . Miscellaneous . | . . . . . . Route ------- -11/Scrapyard -10/Materials (discovered 4 exits: *Mat x3 / *Min) -10/Mines (discovered 2 exits: *Mat / *Exi) -10/Exiles -9/Mines -8/Materials (discovered 1 exit: Fac) History --------- Turn | Location | Event 25 | -11/Scrapyard | Discovered new exit (range 15) 69 | -11/Scrapyard | Entered Materials 140 | -10/Materials | Discovered new exit (range 13) 301 | -10/Materials | Build established: Mutant 317 | -10/Materials | Discovered new exit (range 4) 433 | -10/Materials | Discovered new exit (range 16) 456 | -10/Materials | Identified exit to Materials 700 | -10/Materials | Repaired Mining Claw? 737 | -10/Materials | Discovered exit to Materials (range 8) 897 | -10/Materials | Identified exit to Mines 898 | -10/Materials | Entered Mines 937 | -10/Mines | Lost 3 parts (1p2w) 950 | -10/Mines | Met a Derelict who couldn't figure out how to use a Trap Extractor 1104 | -10/Mines | Discovered exit to Materials (range 6) 1308 | -10/Mines | Deemed a non-threat by the Exiles lab entrance 1308 | -10/Mines | Discovered new exit (range 5) 1461 | -10/Mines | Build established: Scavenger-Mutant 1562 | -10/Mines | Entered Exiles 1600 | -10/Exiles | Met 8R-AWN 1625 | -10/Exiles | Met EX-HEX 1736 | -10/Exiles | Met EX-DEC 1796 | -10/Exiles | Met EX-BIN 1817 | -10/Exiles | Aligned with FarCom system 1819 | -10/Exiles | Given EX-Vault access code 1883 | -10/Exiles | Opened EX-Vault 1895 | -10/Exiles | Found Potential Leg 1906 | -10/Exiles | Found PSU Rigger 1920 | -10/Exiles | Found Superbattery 1964 | -10/Exiles | Warned to stay clear of 0b10 Research branches 2104 | -10/Exiles | Discovered new exit (range 14) 2122 | -10/Exiles | Left Exiles lab with Superbattery 2122 | -10/Exiles | Entered Mines 2152 | -9/Mines | Found a damaged Exp. Sensor Array with a note attached 2155 | -9/Mines | Found Prototype Device 2185 | -9/Mines | Identified exit to Materials 2193 | -9/Mines | Build established: Mutant 2243 | -9/Mines | Received a Mining Laser from a helpful Derelict 2338 | -9/Mines | Entered Materials 2338 | -8/Materials | Accompanied by 3 allies 2338 | -8/Materials | Evolved 4 slots: Propulsion x2, Utility x2 2339 | -8/Materials | Identified exit to Factory 2343 | -8/Materials | Led the pair of lost Derelicts to an unsafe place 2603 | -8/Materials | Core integrity fell below 50% 2613 | -8/Materials | Core integrity fell below 20% 2624 | -8/Materials | Destroyed by G-50 Soldier with Heavy Laser Last Messages --------------- 02508_ Kicked R-06 Scavenger out of the way. 02514_ Acquired 50 matter. 02530_ Carbon-fiber Leg destroyed. 02531_ K-01 Serf collects debris. 02540_ Aluminum Leg destroyed. 02548_ Beam Rifle destroyed. 02561_ Aluminum Leg destroyed. 02566_ Lgt. Nuclear Core destroyed. 02578_ Acquired Titanium Leg. 02580_ Aluminum Leg destroyed. 02581_ Acquired Titanium Leg. 02584_ Titanium Leg severed. 02590_ Acquired Hvy. Flail. 02590_ Hvy. Assault Rifle destroyed. 02603_ B-36 Bruiser destroyed. 02608_ Acquired Hammer. 02612_ L-31 Rogue destroyed. 02614_ Lgt. Armor Plating destroyed. 02617_ Titanium Leg destroyed. 02620_ Hammer destroyed. Map ----- +----------------------------------------------------+ | ???????????????????# #?????????????????????????? | | ???????????????????# #/####??????????????????????? | | ??????????????????# # #??????????????????????? | | ??????????????????# # #??????????????????????? | | ??????????????????+ # #??????????????????????? | | ??????????????????# # #??????????????????????? | | ??????????????????# # #??????????????????????? | | ??????????????????# ?+ #??????????????????????? | | ??????????????????# ?# #??########????????????? | | ??????????????????#??+ #? #????????????? | | ??????????????????# ?# #? ! #????????????? | | ??????????????????# ####+# #????????????? | | ??????????????????# # #????????????? | | ??????????????????# + = ! #????????????? | | ??????????????????# ### # / #????????????? | | ??????????????????# ???# # #????????????? | | ???????????????????????# #? ! #????????????? | | ???????????????????????# #?#########????????????? | | ???????????????????????# #??????????????????????? | | ???????????????????????# #??????????????????????? | | ???????????????????????# #??????????????????????? | | ???????????????????????# ######?????????????????? | | ???????????????????????# #?????????????????? | | ???????????????????????# +?????????????????? | | ???????????????????????#####+#+#?????????????????? | | ????????????????????????#@!g i #?????????????????? | | ????????????????????????#!%g! #?????????????????? | | ????????????????????????#%=g! #?????????????????? | | ????????????????????????# g = #?????????????????? | | ????????????????????????########?????????????????? | | | | | | | | | | | | | | | | | | | | | | | | | | | | | | | | | | | | | | | | | +----------------------------------------------------+ Best States ------------- Heat Dissipation 45 Energy Generation 18 Energy Capacity 250 Matter Stores 300 Matter Capacity 300 Sight Range 16 Terrain Scan Density 10 Evasion (%) 40 Targeting Accuracy 5 Item Schematics ----------------- Lrg. Storage Unit | -10/Materials | Hacked Med. Storage Unit | -10/Materials | Hacked Robot Schematics ------------------ None Fabricated ------------ Nothing Alien Tech Used ----------------- None Achievements -------------- None Challenges ------------ None Game ------ Seed ParticleBeamImmobilizer Manual? 0 Play Time 00:44:58 Cumulative 67.7 hours Start 2021.08.09 @ 00:22:41 End 2021.08.09 @ 01:15:54 Sessions 1 Manual Loads 0 Difficulty Rogue Special Mode None Game No. 26 Rogue 26 Adventurer 0 Explorer 0 Win Type - Total 1 Types 1/0/0/0/0/0/0/0/0 Lore% 47 Gallery% 60 Achievement% 45 Wizard Run 0 Options --------- ASCII 0 Keyboard 0 Movement Numpad Keybinds 0 Fullscreen 1 Font 14/SmallcapsGlow Map View 84x54 Tactical HUD 1 Map Filters NONE Filters NONE Steam 1 RUN: 04dbd014-89e8-4d0e-aaec-eec356ec9d28